Cogmind - Beta 9.3 @@@ ROGUE MODE // 2019.12.24 @ 10:38:49 // Winter2019/RPGLIKE Player: Rumbl3 Result: Destroyed by D-53 Grenadier with Mini Grenade Launcher Performance ------------- Evolutions (0) 0 Regions Visited (2) 400 Robots Destroyed (12) 60 Value Destroyed (278) 278 Prototype IDs (4) 80 Alien Tech Used (0) 0 Bonus (0) 0 TOTAL SCORE: 818 Bonus ------- None Cogmind --------- Core Integrity 0/600 Matter 300/300 Energy 136/140 System Corruption 0% Temperature Cool (182) Movement Hovering (76) Location -10/Mines Parts ------- > --- POWER (1) -------- Light Deuterium Engine > --- PROPULSION (2) --- Combat Airjet Combat Airjet > --- UTILITY (4) ------ Signal Interpreter Terrain Scanner Seismic Analyzer Improved Light Armor Plating > --- WEAPON (2) ------- EM Pulse Gun Medium Laser > --- INVENTORY (2) ---- Wheel Mini Grenade Launcher Peak State ------------ > --- POWER ------------ Light Deuterium Engine > --- PROPULSION ------- Combat Airjet Combat Airjet > --- UTILITY ---------- Signal Interpreter Terrain Scanner Seismic Analyzer Improved Light Armor Plating > --- WEAPON ----------- EM Pulse Gun Medium Laser > --- INVENTORY -------- Ion Engine Wheel [Rating: 21] Favorites ----------- Power Ion Engine Engine Ion Engine Power Core Light Nuclear Core Propulsion Hover Unit Leg Aluminum Leg Wheel Compact Wheel Hover Unit Hover Unit Utility Seismic Analyzer Device Terrain Scanner Processor Seismic Analyzer Protection Improved Light Armor Plating Weapon Medium Laser Energy Gun Medium Laser Build | -11 -10 -10 ------- Run | Scr Mat Min Slots Evolved 5 | 3 . 2 Power . | . . . Propulsion 1 | 1 . . Utility 3 | 1 . 2 Weapon 1 | 1 . . Parts Attached 15 | 4 3 8 Power 2 | . . 2 Engine 1 | . . 1 Core 1 | . . 1 Reactor . | . . . Propulsion 8 | 2 2 4 Treads . | . . . Leg . | . . . Wheel 2 | 2 . . Hover 6 | . 2 4 Flight . | . . . Utility 4 | 1 1 2 Device 1 | . . 1 Storage . | . . . Processor 2 | 1 1 . Hackware . | . . . Protection 1 | . . 1 Artifact . | . . . Weapon 1 | 1 . . Energy Gun 1 | 1 . . Energy Cannon . | . . . Ballistic Gun . | . . . Ballistic Cannon . | . . . Launcher . | . . . Special Weapon . | . . . Impact Weapon . | . . . Slashing Weapon . | . . . Piercing Weapon . | . . . Special Melee Weapon . | . . . Unidentified Prototypes . | . . . Parts Lost . | . . . Power . | . . . Propulsion . | . . . Utility . | . . . Weapon . | . . . Highest Loss Streak . | . . . Average Slot Usage (%) 99 | . 97 100 Engine 8 | . 14 4 Core 5 | . . 9 Wheel 3 | . 9 . Hover 23 | . 18 27 Device 1 | . . 2 Processor 26 | . 25 27 Energy Gun 27 | . 28 27 Naked Turns . | . . . Heaviest Build 13 | 9 9 13 Greatest Support 49 | 31 31 49 Greatest Overweight (x) . | . . . Average Overweight (x) . | . . . Largest Inventory Capacity 2 | 2 2 2 Average Capacity 1 | 1 2 2 Most Carried 2 | 2 2 2 Average Carried 1 | 1 2 1 Final Capacity 2 | 2 2 2 Final Carried 2 | 2 2 2 Class Distribution -------------------- 73% | Scavenger-Mutant 26% | Mutant Dominant Class ---------------- Mutant | -10/Materials Scavenger-Mutant | -10/Mines Resources | -11 -10 -10 ----------- Run | Scr Mat Min Matter Collected 350 | 240 30 80 Remotely . | . . . Salvage Created 297 | 127 124 46 Parts 28 | 6 19 3 Haulers Intercepted . | . . . Recyclers Shooed . | . . . Parts Field Recycled . | . . . Retrieved Matter . | . . . Parts Self-Destructed . | . . . Prevented . | . . . Kills | -11 -10 -10 ------- Run | Scr Mat Min Combat Hostiles Destroyed 7 | . 4 3 Guns 7 | . 4 3 Classes Destroyed 5 | 2 2 1 Tunneler 1 | 1 . . Recycler 1 | 1 . . Watcher 3 | . 3 . Grunt 6 | . 4 2 Assembled 1 | . . 1 Best Kill Streak 6 | 2 6 1 Combat Bots Only 2 | . 2 1 Max Kills in Single Turn 1 | 1 1 1 Gunslinging . | . . . Exploded . | . . . Melee . | . . . Uniques/NPCs Destroyed . | . . . Combat | -11 -10 -10 -------- Run | Scr Mat Min Damage Taken 911 | . 102 809 Core 757 | . 85 672 Absorbed by Shields . | . . . Redirected to Core 530 | . 55 475 Core Remaining (%) 100 | 100 . . Volleys Fired 42 | 2 22 18 Largest 2 | 2 2 2 Hottest 90 | 90 90 90 Shots Fired 81 | 4 41 36 Gun 81 | 4 41 36 Cannon . | . . . Launcher . | . . . Special . | . . . Kinetic . | . . . Thermal 39 | 2 19 18 Explosive . | . . . Electromagnetic 42 | 2 22 18 Robot Hit Streak 7 | 3 7 3 Robot Miss Streak 4 | . 4 3 Penetration Max . | . . . Secondary Targets . | . . . Shots Hit Robots 46 | 3 24 19 Core Hits 18 | 2 10 6 Critical Hits . | . . . Critical Kills . | . . . Critical Parts Destroyed . | . . . Melee Attacks . | . . . Impact . | . . . Slashing . | . . . Piercing . | . . . Sneak Attacks . | . . . Combat Hostiles . | . . . Follow-up Attacks . | . . . Damage Inflicted 635 | 40 341 254 Guns 606 | 40 312 254 Cannons . | . . . Explosions 29 | . 29 . Melee . | . . . Ramming . | . . . Kinetic . | . . . Thermal 317 | 13 166 138 Explosive . | . . . Electromagnetic 318 | 27 175 116 Impact . | . . . Slashing . | . . . Piercing . | . . . Highest Corruption . | . . . Average Corruption . | . . . Corruption Purged . | . . . Overload Shots . | . . . Overflow Damage . | . . . Projectiles . | . . . Explosions . | . . . Melee . | . . . Knockbacks . | . . . Impact . | . . . Kinetic . | . . . Secondary . | . . . Self-Inflicted Damage 39 | . 39 . Shots 1 | . 1 . Rammed . | . . . Targets Rammed . | . . . Kicked . | . . . Crushed . | . . . Highest Temperature 333 | 30 268 333 Average Temperature 110 | 17 116 112 Received Heat Transfer 121 | . 36 85 Effects 4 | . 3 1 Interference 3 | . 3 . Damage (minor) 1 | . . 1 Siege Activations . | . . . Robots Corrupted . | . . . Combat Hostiles . | . . . Parts Fried . | . . . Impact Corruptions . | . . . Robots Melted . | . . . Combat Hostiles . | . . . Parts Melted . | . . . Heat Transferred 901 | 37 457 407 Parts Sabotaged . | . . . Parts Stolen . | . . . Parts Stripped . | . . . Power Chain Reactions 1 | . 1 . Missiles Intercepted . | . . . Alert | -11 -10 -10 ------- Run | Scr Mat Min Peak Influence 223 | 10 223 151 Average Influence 111 | 5 101 131 Maximum Alert Level 1 | . 1 . Low Security (%) 98 | 100 97 100 Level 1 1 | . 2 . Level 2 . | . . . Level 3 . | . . . Level 4 . | . . . Level 5 . | . . . High Security . | . . . Max Security . | . . . Squads Dispatched 3 | . 3 . Investigation 2 | . 2 . Extermination . | . . . Reinforcement 1 | . 1 . Assault . | . . . Garrison . | . . . Intercept . | . . . Construction Impeded . | . . . Haulers Reinforced . | . . . Stealth | -11 -10 -10 --------- Run | Scr Mat Min Distress Signals 2 | . 2 . Communications Jammed . | . . . Distress Signals . | . . . Times Spotted 36 | . 13 23 Peak Tracking Total 15 | . 4 15 Tactical Retreats 4 | . 1 3 Traps | -11 -10 -10 ------- Run | Scr Mat Min Traps Triggered . | . . . Indirectly . | . . . Trap Hack Attempts . | . . . Triggered . | . . . Disarmed . | . . . Reprogrammed . | . . . Reused . | . . . Traps Extracted . | . . . Installed . | . . . Triggered . | . . . Machines | -11 -10 -10 ---------- Run | Scr Mat Min Machines Disabled . | . . . Max in Single Turn . | . . . Machines Sabotaged . | . . . Garrisons Compromised . | . . . Overloaded Fab Kills . | . . . Fab Network Shutdowns . | . . . Hacking | -11 -10 -10 --------- Run | Scr Mat Min Machines Accessed 4 | . 4 . Terminals 3 | . 3 . Fabricators . | . . . Repair Stations . | . . . Recycling Units 1 | . 1 . Scanalyzers . | . . . Garrison Access . | . . . Total Hacks 12 | . 12 . Successful 10 | . 10 . Failed 1 | . 1 . Catastrophic 1 | . 1 . Database Lockouts 1 | . 1 . Manual 9 | . 9 . Terminals 10 | . 10 . Fabricators . | . . . Repair Stations . | . . . Recycling Units 2 | . 2 . Scanalyzers . | . . . Garrison Access . | . . . Terminal Hacks 4 | . 4 . Prototype ID Bank 3 | . 3 . Branch Access Points 1 | . 1 . Fabricator Hacks . | . . . Repair Station Hacks . | . . . Recycling Unit Hacks 1 | . 1 . Report Inventory 1 | . 1 . Scanalyzer . | . . . Garrison Access Hacks . | . . . Unauthorized Hacks 10 | . 10 . Terminals 4 | . 4 . Track 1 | . 1 . Botnet 2 | . 2 . Operators 1 | . 1 . Fabricators . | . . . Repair Stations . | . . . Recycling Units 1 | . 1 . Tunnel 1 | . 1 . Scanalyzers . | . . . Garrison Access . | . . . Data Cores Recovered . | . . . Used . | . . . Hacking Detections 2 | . 2 . Full Trace Events 1 | . 1 . Feedback Events . | . . . Feedback Blocked . | . . . Robot Schematics Acquired . | . . . Robots Built . | . . . Matter . | . . . Time . | . . . Total Robot Build Rating . | . . . Part Schematics Acquired . | . . . Parts Built . | . . . Matter . | . . . Time . | . . . Total Part Build Rating . | . . . Parts Repaired . | . . . Time . | . . . Parts Recycled . | . . . Recycled Matter . | . . . Retrieved Matter . | . . . Retrieved Components . | . . . Parts Scanalyzed . | . . . Part Schematics Acquired . | . . . Parts Damaged . | . . . Bothacking | -11 -10 -10 ------------ Run | Scr Mat Min Used RIF Installer . | . . . Robots Hacked . | . . . Non-combat . | . . . Combat . | . . . Robot Hacks Applied . | . . . Relay Couplers Released . | . . . Robots Rewired . | . . . Allies Hacked . | . . . Hacks Repelled . | . . . Allies | -11 -10 -10 -------- Run | Scr Mat Min Total Allies . | . . . Largest Group . | . . . Highest-Rated Group . | . . . Highest-Rated Ally . | . . . Total Orders . | . . . Ally Attacks . | . . . Total Damage . | . . . Kills . | . . . Allies Corrupted . | . . . Allies Melted . | . . . Intel | -11 -10 -10 ------- Run | Scr Mat Min Robot Analysis Total . | . . . Derelict Logs Recovered 2 | . . 2 Drone Launches . | . . . Drone Recoveries . | . . . Exploration | -11 -10 -10 ------------- Run | Scr Mat Min Turns Passed 576 | 43 202 331 Spaces Moved 649 | 32 173 444 Core . | . . . Treads . | . . . Legs 2 | 2 . . Wheels 50 | 30 20 . Hover 597 | . 153 444 Flight . | . . . Fastest Speed 56 | 80 56 56 Average Speed 60 | 91 63 57 Slowest Speed 120 | 120 90 76 Overloaded Moves . | . . . Propulsion Burnouts . | . . . Robots Hopped . | . . . Cave-ins Triggered . | . . . Exploration Rate (%) 44 | 3 45 84 Regions Visited 2 Branch Regions 1 Pre-discovered Areas 3 | . 1 2 Known Exits Taken 1 | . 1 . Unknown Exits Taken 1 | 1 . . Scrap Searched 1 | . . 1 Spaces Dug . | . . . Terrain Destroyed 2 | . 2 . Melee . | . . . Projectile . | . . . AOE 2 | . 2 . Actions | -11 -10 -10 --------- Run | Scr Mat Min Total 750 | 40 223 487 Wait 18 | . 17 1 Move 647 | 31 172 444 Hop . | . . . Pick Up 5 | 2 . 3 Fast Attach 13 | 4 3 6 Attach . | . . . Detach . | . . . Swap 2 | . . 2 Drop 11 | 1 2 8 Fire 42 | 2 22 18 Melee . | . . . Ram . | . . . Kick . | . . . Crush . | . . . Escape Stasis . | . . . Rewire . | . . . Trap . | . . . Miscellaneous 12 | . 7 5 Route ------- -11/Scrapyard -10/Materials (discovered 2 exits: *Min x2) -10/Mines History --------- Turn | Location | Event 1 | -11/Scrapyard | Discovered new exit (range 0) 6 | -11/Scrapyard | Upgraded with Propulsion slot (x1) 6 | -11/Scrapyard | Upgraded with Utility slot (x1) 6 | -11/Scrapyard | Upgraded with Weapon slot (x1) 44 | -11/Scrapyard | Entered Materials 85 | -10/Materials | Central database locked down 220 | -10/Materials | Identified exit to Mines 246 | -10/Materials | Entered Mines 260 | -10/Mines | Met a Derelict bent on vengeance 311 | -10/Mines | Reached level 2 417 | -10/Mines | Assembled infested the area 422 | -10/Mines | Assisted by a Guerilla fighting off Assembled 451 | -10/Mines | Found a hidden stash of uninstalled traps 490 | -10/Mines | Build established: Scavenger-Mutant 510 | -10/Mines | Core integrity fell below 50% 510 | -10/Mines | Upgraded with Utility slot (x1) 544 | -10/Mines | Upgraded with Utility slot (x1) 559 | -10/Mines | Core integrity fell below 20% 561 | -10/Mines | Learned location of Recycling (-8) 577 | -10/Mines | Destroyed by D-53 Grenadier with Mini Grenade Launcher Last Messages --------------- 00556_ U-05 Engineer lays Concrete. 00556_ U-05 Engineer builds a Wall. 00557_ R-06 Scavenger collects Hover Unit. 00559_ U-05 Engineer lays Concrete. 00560_ U-05 Engineer builds a Wall. 00561_ Acquired derelict log, extracted data. World map updated: -8/Recycling. 00561_ U-05 Engineer lays Concrete. 00562_ K-01 Serf collects debris. 00564_ U-05 Engineer lays Concrete. 00564_ U-05 Engineer builds a Wall. 00565_ U-05 Engineer lays Concrete. 00566_ Destroyed Shock Absorption System. 00568_ U-05 Engineer lays Concrete. 00568_ U-05 Engineer builds a Wall. 00569_ The unstable cave ceiling collapses. 00569_ U-05 Engineer lays Concrete. 00574_ The unstable cave ceiling collapses. 00574_ U-05 Engineer lays Concrete. 00577_ The unstable cave ceiling collapses. Map ----- +----------------------------------------------------+ | ?# ###?##!| #####??#???????? | | ?# ### #??#???????????? | | ?# ####????????????? | | ?# ##?????????#????? | | ?## ##??????#??????? | | ??## #?????????????? | | ???##### """ #?????????????? | | ???????## """ #???#?##??????? | | ????????## """ #?#???????????? | | ?##????##### ##??#??????????? | | ??#???##?#?# ## #?#?#??????????? | | ??#????????# ## #???#??????????? | | ??????#????# #?########?###?? | | ?#????????## #### ?? #??? | | #????????### ##? ?? #?#? | | ???#????## ### ##???? #?#? | | ??????#?# % # ##???? #??? | | ????????# #?# ##? #?#? | | ????????# ###????? ##?? | | ???#???## ###?? #?# ##? | | ???###??## % #???##### #?? | | ???##???## = #### ## # ### | | ??###?#??# % # #?#? | | #??#?#?### ##### # ##?# | | ?????#?### ##### #?# | | ???#?#?#?## # @ #?? | | ??????##?## u d ##? | | #???##????#!# #?? | | ??###?#?##### ##?# | | ?????#?###### # ######?## | | #??#?##### !%= ##??#??##?# | | #?????### * ##?#??#??#?? | | ?#??# ## * #????#??#?#? | | #######%= #? ??#??#?# | | % #?#???? | | ##???? | | #### = ??? | | ???## ### %* ??? | | ?#??## ###### ! ??? | | ???#?#####??# ???? | | ##???#?#???#? # ???? | | #??#?????#??### ##### ????? | | ????#?#???#??######????# ????? | | #??#??##?#??##??????????###?????? | | ???##???###?????????????????????? | | ?????#????#??##?#??#????????????? | | ?????#??????????????????????????? | | ?????????#??????????????????????? | | ????????????????????????????????? | | | +----------------------------------------------------+ Best States ------------- Heat Dissipation 25 Energy Generation 14 Energy Capacity 250 Matter Stores 300 Matter Capacity 300 Sight Range 16 Robot Scan Range 2 Terrain Scan Range 14 Terrain Scan Density 160 Armor Coverage 150 Evasion (%) 53 Item Schematics ----------------- None Robot Schematics ------------------ None Fabricated ------------ Nothing Alien Tech Used ----------------- None Achievements -------------- None Challenges ------------ None RPGLIKE | -11 -10 -10 --------- Run | Scr Mat Min Levels Raised 1 | . . 1 XP Earned 4515 | 3000 765 750 XP Spent 4350 | 2450 . 1900 Upgrades 10 | 8 . 2 Propulsion Slot 1 | 1 . . Utility Slot 3 | 1 . 2 Weapon Slot 1 | 1 . . Mass Support 1 | 1 . . Inventory Capacity 2 | 2 . . Sensor Range 1 | 1 . . Terrain Scan Density 1 | 1 . . Protomatter Created 187 | . 134 53 Integrity Restored 206 | . 112 94 Core 148 | . 85 63 Parts 58 | . 27 31 Protomatter Decayed 141 | . 38 103 Game ------ Seed ImprinterProtonGun Manual? 0 Play Time 00:15:17 Cumulative 298.0 hours Start 2019.12.24 @ 10:24:45 End 2019.12.24 @ 10:38:49 Sessions 1 Manual Loads 0 Difficulty Rogue Special Mode Winter2019/RPGLIKE Game No. 125 Rogue 125 Adventurer 0 Explorer 0 Win Type - Total 8 Types 7/0/0/1/0/0/0 Lore% 81 Gallery% 82 Achievement% 62 Wizard Run 0 Options --------- ASCII 0 Keyboard 0 Movement Numpad Keybinds 0 Fullscreen 0 Font 14/Dina Map View 76x50 Tactical HUD 1 Map Filters NONE Filters NONE Steam 1 RUN: d2aebc8e-ccd3-4131-847d-a85ceac45ec9